Cogmind - Beta 16 @@@ ROGUE MODE // 2025.12.03 @ 16:26:24 Player: Sir Cheese Result: Self-destructed Performance ------------- Evolutions (2) 1000 Regions Visited (3) 600 Robots Destroyed (23) 115 Value Destroyed (828) 828 Prototype IDs (0) 0 Alien Tech Used (0) 0 Bonus (0) 0 TOTAL SCORE: 2543 Bonus ------- None Cogmind --------- Core Integrity 179/550 Matter 300/300 Energy 67/250 System Corruption 4% Temperature Cool (9) Movement Walking (120) Location -8/Materials Parts ------- > --- POWER (2) -------- Ion Engine > --- PROPULSION (3) --- Aluminum Leg Aluminum Leg > --- UTILITY (4) ------ Improved Heat Sink Medium Storage Unit Advanced Weight Redist. System > --- WEAPON (2) ------- Pulse Rifle Axe > --- INVENTORY (10) --- Light Treads Advanced Treads Aluminum Leg Large Storage Unit Machine Analyzer Improved Terrain Scanner Pulse Rifle Ripper Peak State ------------ > --- POWER ------------ Light Nuclear Core > --- PROPULSION ------- Advanced Treads Aluminum Leg Aluminum Leg > --- UTILITY ---------- Improved Heat Sink Medium Storage Unit > --- WEAPON ----------- Pulse Rifle Pulse Rifle > --- INVENTORY -------- Ion Engine Large Storage Unit Machine Analyzer Improved Terrain Scanner Datajack Axe Ripper [Rating: 19] Favorites ----------- Power Ion Engine Engine Ion Engine Power Core Light Nuclear Core Propulsion Aluminum Leg Treads Light Treads Leg Aluminum Leg Utility Medium Storage Unit Device Seismic Detector Storage Medium Storage Unit Protection Light Armor Plating Weapon Medium Laser Energy Gun Medium Laser Ballistic Gun Light Assault Rifle Launcher Grenade Launcher Slashing Weapon Ripper Build | -11 -10 -10 -8 ------- Run | Yrd Mat Sub Mat Slots Evolved 4 | . . . 4 Power 1 | . . . 1 Propulsion 1 | . . . 1 Utility 2 | . . . 2 Weapon . | . . . . Parts Attached 26 | 8 2 1 15 Power 3 | 1 . . 2 Engine 2 | 1 . . 1 Core 1 | . . . 1 Reactor . | . . . . Propulsion 10 | 4 . . 6 Treads 4 | 2 . . 2 Leg 6 | 2 . . 4 Wheel . | . . . . Hover . | . . . . Flight . | . . . . Utility 6 | 1 2 . 3 Device 3 | . 1 . 2 Storage 2 | 1 1 . . Processor . | . . . . Hackware . | . . . . Protection 1 | . . . 1 Artifact . | . . . . Weapon 7 | 2 . 1 4 Energy Gun 3 | 1 . . 2 Energy Cannon . | . . . . Ballistic Gun 1 | 1 . . . Ballistic Cannon . | . . . . Launcher 1 | . . 1 . Special Weapon . | . . . . Impact Weapon . | . . . . Slashing Weapon 2 | . . . 2 Piercing Weapon . | . . . . Special Melee Weapon . | . . . . Unidentified Prototypes . | . . . . Parts Lost 14 | . . 1 13 Power 2 | . . . 2 Propulsion 7 | . . . 7 Utility 2 | . . . 2 Weapon 3 | . . 1 2 Highest Loss Streak 8 | . . 1 8 To Critical Strikes . | . . . . Average Backups 8 | 3 7 10 8 Power 1 | . 1 1 1 Propulsion 1 | 1 2 2 1 Utility 3 | . 2 4 3 Weapon 1 | . 1 2 1 Tool/Special . | . . . . Unused Backups 8 | . 1 1 6 Power . | . . . . Propulsion 2 | . . . 2 Utility 4 | . 1 . 3 Weapon 1 | . . 1 . Tool/Special 1 | . . . 1 Average Slot Usage (%) 81 | . 100 99 62 Engine 10 | . 14 14 6 Core 1 | . . . 2 Treads 2 | . . . 5 Leg 20 | . 28 28 13 Device 10 | . 14 14 7 Storage 11 | . 14 14 9 Protection 1 | . . . 2 Energy Gun 10 | . 14 14 6 Ballistic Gun 6 | . 14 . 4 Launcher 2 | . . 12 . Slashing Weapon 2 | . . . 4 Peak Build Rating 19 | 6 8 8 19 Average Rating 8 | 4 7 7 11 On Entrance 5 | . 6 8 7 Avg Prop Armor Cover (%) 18 | . . . 18 Naked Turns . | . . . . Heaviest Build 22 | 13 19 21 22 Greatest Support 40 | 40 20 20 40 Greatest Overweight (x) 6 | . . 1 6 Average Overweight (x) . | . . . . Largest Inventory Capacity 10 | 8 10 10 10 Average Capacity 9 | 7 9 10 10 Most Carried 10 | 6 10 10 10 Average Carried 8 | 3 8 9 8 Final Capacity 10 | 8 10 10 10 Final Carried 10 | 6 10 10 8 Class Distribution -------------------- 100% | Mutant Dominant Class ---------------- Mutant | -10/Materials Mutant | -10/Subcaves Mutant | -8/Materials Resources | -11 -10 -10 -8 ----------- Run | Yrd Mat Sub Mat Matter Collected 691 | 288 26 82 295 Remotely . | . . . . Salvage Created 963 | 157 28 27 751 Parts 47 | 10 3 . 34 Haulers Intercepted . | . . . . Recyclers Shooed 1 | . . . 1 Parts Field Recycled . | . . . . Retrieved Matter . | . . . . Parts Self-Destructed . | . . . . Prevented . | . . . . Parts Restored . | . . . . Kills | -11 -10 -10 -8 ------- Run | Yrd Mat Sub Mat Combat Hostiles Destroyed 17 | . . 2 15 Melee 8 | . . . 8 Guns 7 | . . . 7 AOE 2 | . . 2 . Classes Destroyed 9 | 3 2 1 3 Worker 1 | 1 . . . Tunneler 2 | 2 . . . Recycler 1 | 1 . . . Operator 1 | . 1 . . Watcher 1 | . 1 . . Grunt 13 | . . . 13 Brawler 1 | . . . 1 Sentry 1 | . . . 1 Subdweller 2 | . . 2 . Best Kill Streak 6 | 2 1 2 6 Combat Bots Only 6 | . . 2 6 Max Kills in Single Turn 1 | 1 1 1 1 Gunslinging . | . . . . Exploded 1 | . . 1 . Melee 1 | . . . 1 Uniques/NPCs Destroyed . | . . . . Combat | -11 -10 -10 -8 -------- Run | Yrd Mat Sub Mat Hostile Shots Fired 171 | . . 21 150 Missed 53 | . . 6 47 Hits 118 | . . 15 103 Melee 1 | . . . 1 Projectile 117 | . . 15 102 Critical Strikes 3 | . . . 3 Damage Taken 1945 | . . 343 1602 Core 459 | . . 88 371 Absorbed by Shields . | . . . . Core Remaining (%) 82 | 100 . 64 . Volleys Fired 62 | 8 7 10 37 Largest 2 | 2 2 2 2 Hottest 126 | 70 70 80 126 Shots Fired 119 | 16 14 19 70 Gun 110 | 16 14 10 70 Cannon . | . . . . Launcher 9 | . . 9 . Special . | . . . . Kinetic 46 | 8 7 . 31 Thermal 64 | 8 7 10 39 Explosive 9 | . . 9 . Electromagnetic . | . . . . Robot Hit Streak 12 | 5 3 12 12 Robot Miss Streak 5 | 5 3 1 2 Penetration Max . | . . . . Secondary Targets 1 | . . . 1 Max Gunslinging Chain 1 | . . . 1 Shots Hit Robots 106 | 8 6 14 78 Core Hits 46 | 5 4 5 32 Critical Kills . | . . . . Critical Parts Destroyed 1 | . . . 1 Critical Strikes 9 | . 1 1 7 Burn 5 | . 1 1 3 Destroy 1 | . . . 1 Sever 3 | . . . 3 Melee Attacks 27 | . . . 27 Impact . | . . . . Slashing 27 | . . . 27 Piercing . | . . . . Sneak Attacks . | . . . . Combat Hostiles . | . . . . Follow-up Attacks . | . . . . Damage Inflicted 1982 | 88 57 489 1348 Guns 884 | 88 57 86 653 Cannons . | . . . . Explosions 403 | . . 403 . Melee 695 | . . . 695 Ramming . | . . . . Kinetic 267 | 37 33 . 197 Thermal 617 | 51 24 86 456 Explosive 403 | . . 403 . Electromagnetic . | . . . . Impact . | . . . . Slashing 695 | . . . 695 Piercing . | . . . . Highest Corruption 4 | . . . 4 Average Corruption 4 | . . . 4 Corruption Purged . | . . . . Corruption Blocked . | . . . . Effects 5 | . . . 5 Heat Flow Errors 1 | . . . 1 Energy Discharges 1 | . . . 1 Parts Rejected 1 | . . . 1 Alerts 1 | . . . 1 Weapon Failures 1 | . . . 1 Overload Shots . | . . . . Overflow Damage 30 | . . 12 18 Projectiles . | . . . . Explosions 12 | . . 12 . Melee 18 | . . . 18 Knockbacks . | . . . . Impact . | . . . . Kinetic . | . . . . Secondary . | . . . . Self-Inflicted Damage 24 | . . 24 . Shots 2 | . . 2 . Rammed . | . . . . Targets Rammed . | . . . . Kicked . | . . . . Crushed . | . . . . Highest Temperature 502 | 60 60 1 502 Average Temperature 58 | 24 25 1 74 Received Heat Transfer 969 | . . 60 909 Effects 2 | . . . 2 Shutdowns 1 | . . . 1 Matter Decay 1 | . . . 1 Siege Activations . | . . . . Martial Activations . | . . . . Shielding Activations . | . . . . Robots Disrupted . | . . . . Combat Hostiles . | . . . . Robots Corrupted . | . . . . Combat Hostiles . | . . . . Parts Fried . | . . . . Impact Corruptions . | . . . . Robots Melted . | . . . . Combat Hostiles . | . . . . Parts Melted 2 | 1 . . 1 Heat Transferred 2072 | 148 148 333 1443 Parts Sabotaged . | . . . . Parts Stolen . | . . . . Parts Stripped . | . . . . Power Chain Reactions . | . . . . Alert | -11 -10 -10 -8 ------- Run | Yrd Mat Sub Mat Maximum Alert Level . | . . . . Low Security (%) 100 | 100 100 . 100 Level 1 . | . . . . Level 2 . | . . . . Level 3 . | . . . . Level 4 . | . . . . Level 5 . | . . . . High Security . | . . . . Max Security . | . . . . Peak Influence 145 | 5 15 . 145 Initial 3 | . 3 . . Average 35 | . 1 . 67 Influence Increases 413 | 20 27 . 366 Destroy 0b10 Robot/C 300 | . . . 300 Destroy 0b10 Robot/NC 30 | 20 10 . . Destroy Leader 52 | . 2 . 50 Destroy Structure 1 | . . . 1 Lose Combat Pursuer 30 | . 15 . 15 Influence Decreases 339 | 15 32 . 292 Entered New Map 2 | . 2 . . Time Decay 207 | 15 30 . 162 Lost Part 130 | . . . 130 Squads Dispatched 4 | . 1 . 3 Investigation . | . . . . Extermination . | . . . . Reinforcement 4 | . 1 . 3 Assault . | . . . . Garrison . | . . . . Intercept . | . . . . Searches Triggered . | . . . . Construction Impeded 1 | . . . 1 Haulers Reinforced . | . . . . Active Scanning Responses . | . . . . Cargo Convoy Interrupts . | . . . . Stealth | -11 -10 -10 -8 --------- Run | Yrd Mat Sub Mat Distress Signals 2 | . 1 . 1 Communications Jammed . | . . . . Distress Signals . | . . . . Times Spotted 34 | . 4 4 26 Peak Tracking Total 11 | . 3 2 11 Tactical Retreats 2 | . 1 . 1 Traps | -11 -10 -10 -8 ------- Run | Yrd Mat Sub Mat Traps Triggered . | . . . . Indirectly . | . . . . Trap Hack Attempts . | . . . . Triggered . | . . . . Disarmed . | . . . . Reprogrammed . | . . . . Reused . | . . . . Traps Extracted . | . . . . Installed . | . . . . Triggered . | . . . . Machines | -11 -10 -10 -8 ---------- Run | Yrd Mat Sub Mat Machines Disabled . | . . . . Max in Single Turn . | . . . . Machines Repaired . | . . . . Machines Dismantled . | . . . . Machines Sabotaged . | . . . . Overloaded Fab Kills . | . . . . Hacking | -11 -10 -10 -8 --------- Run | Yrd Mat Sub Mat Machines Accessed 1 | . 1 . . Terminals 1 | . 1 . . Fabricators . | . . . . Repair Stations . | . . . . Recycling Units . | . . . . Scanalyzers . | . . . . Garrison Access . | . . . . Total Hacks 2 | . 2 . . Successful 1 | . 1 . . Failed 1 | . 1 . . Catastrophic . | . . . . Database Lockouts . | . . . . Manual . | . . . . Terminals 2 | . 2 . . Fabricators . | . . . . Repair Stations . | . . . . Recycling Units . | . . . . Scanalyzers . | . . . . Garrison Access . | . . . . Terminal Hacks 1 | . 1 . . Zone Layout 1 | . 1 . . Fabricator Hacks . | . . . . Repair Station Hacks . | . . . . Recycling Unit Hacks . | . . . . Scanalyzer . | . . . . Garrison Access Hacks . | . . . . Unauthorized Hacks . | . . . . Terminals . | . . . . Fabricators . | . . . . Repair Stations . | . . . . Recycling Units . | . . . . Scanalyzers . | . . . . Garrison Access . | . . . . Data Cores Recovered . | . . . . Used . | . . . . Hacking Detections 1 | . 1 . . Full Trace Events . | . . . . Feedback Events . | . . . . Feedback Blocked . | . . . . Robot Schematics Acquired . | . . . . Robots Built . | . . . . Authchips . | . . . . Time . | . . . . Total Robot Build Rating . | . . . . Part Schematics Acquired . | . . . . Parts Built . | . . . . Authchips . | . . . . Time . | . . . . Total Part Build Rating . | . . . . Part Studies Acquired . | . . . . Parts Repaired . | . . . . Time . | . . . . Parts Recycled . | . . . . Recycled Matter . | . . . . Retrieved Matter . | . . . . Retrieved Components . | . . . . Parts Scanalyzed . | . . . . Part Schematics Acquired . | . . . . Parts Damaged . | . . . . Bothacking | -11 -10 -10 -8 ------------ Run | Yrd Mat Sub Mat Used RIF Installer . | . . . . Robots Hacked . | . . . . Non-combat . | . . . . Combat . | . . . . Robot Hacks Applied . | . . . . Relay Couplers Released . | . . . . Fabnet Peak Effective % . | . . . . Robots Rewired . | . . . . Allies Hacked . | . . . . Hacks Repelled . | . . . . Allies | -11 -10 -10 -8 -------- Run | Yrd Mat Sub Mat Total Allies . | . . . . Largest Group . | . . . . Highest-Rated Group . | . . . . Highest-Rated Ally . | . . . . Total Orders . | . . . . Ally Attacks . | . . . . Total Damage . | . . . . Kills . | . . . . Allies Corrupted . | . . . . Allies Melted . | . . . . Intel | -11 -10 -10 -8 ------- Run | Yrd Mat Sub Mat Active Infowar (turns) 689 | . 308 192 189 Seismic 689 | . 308 192 189 Robot Analysis Total . | . . . . Derelict Logs Recovered . | . . . . Drone Launches . | . . . . Drone Recoveries . | . . . . Exploration | -11 -10 -10 -8 ------------- Run | Yrd Mat Sub Mat Turns Passed 1074 | 114 308 192 460 Spaces Moved 559 | 57 230 88 184 Core 3 | 2 . . 1 Treads 36 | 13 . . 23 Legs 520 | 42 230 88 160 Wheels . | . . . . Hover . | . . . . Flight . | . . . . Fastest Speed 50 | 50 120 120 120 Average Speed 134 | 126 120 181 131 Slowest Speed 350 | 160 120 190 350 Overloaded Moves . | . . . . Propulsion Burnouts . | . . . . Robots Hopped . | . . . . Potential Cave-ins . | . . . . Cave-ins Triggered . | . . . . Exploration Rate (%) 12 | 3 29 4 13 Regions Visited 3 Branch Regions 1 Pre-discovered Areas . | . . . . Known Exits Taken . | . . . . Unknown Exits Taken 3 | 1 1 1 . Scrap Searched 1 | . . 1 . Spaces Dug 10 | . . 9 1 Terrain Destroyed 45 | . . 44 1 Melee 1 | . . . 1 Projectile . | . . . . AOE 44 | . . 44 . Terrain Rammed . | . . . . Walls Destroyed . | . . . . Machines Disabled . | . . . . Actions | -11 -10 -10 -8 --------- Run | Yrd Mat Sub Mat Total 730 | 83 251 102 294 Wait 9 | . 3 . 6 Move 556 | 56 229 87 184 Hop . | . . . . Pick Up 35 | 11 7 2 15 Fast Attach 1 | 1 . . . Attach 23 | 5 1 . 17 Detach 1 | . . . 1 Swap 11 | 2 1 1 7 Drop 6 | . 3 2 1 Fire 62 | 8 7 10 37 Melee 26 | . . . 26 Ram . | . . . . Kick . | . . . . Crush . | . . . . Escape Stasis . | . . . . Rewire . | . . . . Trap . | . . . . Miscellaneous . | . . . . Route ------- -11/Scrapyard -10/Materials (discovered 2 exits: [*Mat] / [*Sub]) -10/Subcaves -8/Materials History --------- Turn | Location | Event 12 | -11/Scrapyard | Discovered new exit (range 14) 115 | -11/Scrapyard | Entered Materials 176 | -10/Materials | Discovered new exit (range 13) 306 | -10/Materials | Build established: Mutant 414 | -10/Materials | Discovered new exit (range 5) 423 | -10/Materials | Entered Subcaves 424 | -10/Subcaves | Approached by a straggling Scientist 496 | -10/Subcaves | Discovered new exit (range 12) 507 | -10/Subcaves | Lost 3 allies 615 | -10/Subcaves | Entered Materials 615 | -8/Materials | Evolved 4 slots: Power x1, Propulsion x1, Utility x2 893 | -8/Materials | Lost 8 parts (1p4n1u2w) 1048 | -8/Materials | Core integrity fell below 50% 1075 | -8/Materials | Self-destructed Last Messages --------------- Acquired 58 matter. K-01 Serf collects debris. R-06 Scavenger collects Particle Gun. K-01 Serf collects debris. Acquired 82 matter. K-01 Serf collects debris. R-06 Scavenger collects Particle Gun. K-01 Serf collects debris. K-01 Serf destroyed. Lgt. Nuclear Core destroyed. O-16 Technician: "IFF HANDSHAKE FAILED. SECURING TERMINAL." R-06 Scavenger suffers critical hit (Burn). ALERT: Hostiles spotted, dispatching reinforcements to Terminal M007. Critical hit (Burn: +37). W-25 Informer sends out distress signal. G-47 Trooper suffers critical hit (Destroy). G-47 Trooper destroyed. Aluminum Leg destroyed. Map ----- +----------------------------------------------------+ | ???????????????# | | ???????????????# ### | | ???????????????# #?## | | ???????????????############ "#####+##### | | ????????????????#### ###### %# ! | | ????????????????# = [[ %# # | | ????????????????# / [ /% =# | | ????????????????# %% %# !!# ! | | ????????????????# % #% # | | ??????####+####?#########"# # | | ??????# #?# =% # ########### | | ??????# #?# # #?????????? | | ??????# ### # #?????????? | | ??????# + [ / #?????????? | | ??????# ### # #?????????? | | ??????# * #?# # +?????????? | | ??????# [% #?# # #?????????? | | ??????### ###?# # #?????????? | | ????????# #???########### #?????????? | | ????????# #?????????????? #?????????? | | ????????# ########??????? #?????????? | | ?######## # !!!#??????? ?????????? | | ?# # # !! #??????? ??????????? | | ?# # g# !! #????????????????????? | | ?# Y g = #????????????????????? | | ?# " " # # @! #????????????????????? | | ?# "R" # # = #????????????????????? | | ?# """ # ########????????????????????? | | ?# ###### #???????????????????????????? | | ????????# #???????????????????????????? | | ????????# #???????????????????????????? | | ????????# #???????????????????????????? | | ???????? ???????????????????????????? | | ???????? ???????????????????????????? | | ???????? ???????????????????????????? | | ???????# #??????????????????????????? | | ???????# #??????????????????????????? | | ???????### ###??????????????????????????? | | ?????????? ?????????????????????????????? | | ?????????? ?????????????????????????????? | | ????????????????????????????????????????? | | ????????????????????????????????????????? | | ????????????????????????????????????????? | | ????????????????????????????????????????? | | ????????????????????????????????????????? | | ????????????????????????????????????????? | | ????????????????????????????????????????? | | ????????????????????????????????????????? | | ????????????????????????????????????????? | | ????????????????????????????????????????? | +----------------------------------------------------+ Best States ------------- Heat Dissipation 45 Energy Generation 14 Energy Capacity 250 Matter Stores 300 Matter Capacity 300 Sight Range 16 Terrain Scan Density 10 Additional Mass Support 9 Armor Coverage 150 Evasion (%) 55 Recoil Reduction 2 Item Schematics ----------------- None Robot Schematics ------------------ None Fabricated ------------ Nothing Repaired ---------- Nothing Studied --------- None Alien Tech Used ----------------- None Achievements -------------- None Challenges ------------ None Game ------ Seed LightpackArmorBeamcaster Manual? 0 Play Time 00:13:04 Cumulative 39.3 hours Start 2025.12.03 @ 16:15:38 End 2025.12.03 @ 16:26:24 Sessions 1 Manual Loads 0 Difficulty Rogue Special Mode None Game No. 39 Rogue 11 Adventurer 21 Explorer 7 Win Type - Total 1 Types 1/0/0/0/0/0/0/0/0/0 Lore% 41 Gallery% 39 Achievement% 32 Wizard Run 0 Options --------- Layout 1 ASCII 0 Keyboard 0 Movement Mouse Keybinds 0 Fullscreen 1 Font 48/Smallcaps Map View 50x35 Zoom Use 0% Tactical HUD 0 Map Filters NONE Filters NONE Steam 1 RUN: d44b49fe-b9d4-494f-928a-ac2fee7da3c5